fUSD/lending_fUSD_20250228
["ID","MTS","AMOUNT","RATE_DAILY","PERIOD"]
[354804659,1740708640865,-500.0,0.00054794,120]
[354804660,1740708640878,-253.92409996,0.00054794,120]
[354804661,1740708640889,-246.07590004,0.00054794,120]
[354804662,1740708640899,-500.0,0.00054794,120]
[354804663,1740708640909,-351.87496,0.00054794,120]
[354804664,1740708640919,-500.0,0.00054794,120]
[354804665,1740708640928,-872.12,0.00054794,120]
[354804666,1740708640937,-361.83565386,0.00054795,30]
[354804667,1740708640966,-500.0,0.00054795,30]
[354804668,1740708640977,-3138.16434614,0.00054795,30]
[354804669,1740708640986,-176.35,0.00054795,30]
[354804670,1740708640995,-671.81,0.00054795,10]
[354804671,1740708641005,-174.31585514,0.000549,32]
[354804672,1740708641014,-937.10484357,0.00054967,15]
[354804673,1740708641023,-2931.73495521,0.00054967,120]
[354804674,1740708641034,-275.6525,0.00054967,120]
[354804675,1740708641049,-1179.325,0.00054967,120]
[354804676,1740708641060,-2495.58714316,0.00054967,120]
[354804677,1740708641081,-150.0,0.00054794,120]
[354804678,1740708641091,-225.27700163,0.00054967,120]
[354804679,1740708641099,-84498.4286,0.00054967,120]
[354804680,1740708641109,-242.14,0.0005497,30]
[354804681,1740708641118,-3316.0,0.0005498,25]
[354804682,1740708641127,-150.5,0.0005498,30]
[354804683,1740708641136,-150.5,0.0005499,30]
[354804684,1740708641145,-154.52,0.00055,54]
[354804685,1740708641154,-154.52,0.00055,54]
[354804686,1740708641164,-154.52,0.00055,54]
[354804687,1740708641173,-154.52,0.00055,54]
[354804688,1740708641182,-154.52,0.00055,54]
[354804690,1740708641191,-154.52,0.00055,54]
[354804691,1740708641202,-154.52,0.00055,54]
[354804692,1740708641211,-154.52,0.00055,54]
[354804693,1740708641220,-154.52,0.00055,54]
[354804694,1740708641229,-154.52,0.00055,54]
[354804695,1740708641240,-154.52,0.00055,54]
[354804696,1740708641248,-154.52,0.00055,54]
[354804697,1740708641257,-154.52,0.00055,54]
[354804698,1740708641266,-154.52,0.00055,54]
[354804699,1740708641276,-1105.84,0.00055047,30]
[354804700,1740708641285,-500.0,0.00055067,120]
[354804701,1740708641294,-647.14,0.00055067,120]
[354804702,1740708641303,-500.0,0.00055067,120]
[354804703,1740708641312,-500.0,0.00055067,120]
[354804704,1740708641321,-500.0,0.00055067,120]
[354804705,1740708641330,-500.0,0.00055067,120]
[354804706,1740708641339,-600.42721646,0.00055067,120]
[354804707,1740708641348,-500.0,0.00055067,120]
[354804708,1740708641358,-500.0,0.00055067,120]
[354804709,1740708641367,-500.0,0.00055067,120]
[354804710,1740708641376,-500.0,0.00055067,120]
[354804711,1740708641386,-500.0,0.00055067,120]
[354804712,1740708641395,-500.0,0.00055067,120]
[354804713,1740708641406,-500.0,0.00055067,120]
[354804714,1740708641415,-500.0,0.00055067,120]
[354804715,1740708641424,-500.0,0.00055067,120]
[354804716,1740708641434,-500.0,0.00055067,120]
[354804717,1740708641443,-500.0,0.00055067,120]
[354804718,1740708641453,-537.57,0.00055067,120]
[354804719,1740708641462,-500.0,0.00055067,120]
[354804720,1740708641471,-500.0,0.00055067,30]
[354804721,1740708641480,-500.0,0.00055067,120]
[354804722,1740708641491,-500.0,0.00055067,120]
[354804723,1740708641500,-500.0,0.00055067,120]
[354804724,1740708641509,-500.0,0.00055067,120]
[354804725,1740708641518,-500.0,0.00055067,120]
[354804726,1740708641527,-500.0,0.00055067,120]
[354804727,1740708641536,-500.0,0.00055067,120]
[354804728,1740708641546,-300.0,0.00055067,120]
[354804729,1740708641556,-500.0,0.00055067,120]
[354804730,1740708641565,-500.0,0.00055067,120]
[354804731,1740708641574,-500.0,0.00055067,120]
[354804732,1740708641583,-500.0,0.00055067,120]
[354804733,1740708641595,-500.0,0.00055067,120]
[354804734,1740708641604,-500.0,0.00055067,120]
[354804735,1740708641613,-496.60167734,0.00055067,120]
[354804736,1740708641622,-500.0,0.00055067,120]
[354804737,1740708641632,-311.2043672,0.00055067,120]
[354804738,1740708641641,-500.0,0.00055067,120]
[354804739,1740708641651,-500.0,0.00055067,120]
[354804740,1740708641660,-534.45,0.00055067,120]
[354804741,1740708641670,-500.0,0.00055067,120]
[354804742,1740708641679,-469.5,0.00055067,120]
[354804743,1740708641688,-500.0,0.00055067,120]
[354804744,1740708641698,-559.74,0.00055067,120]
[354804745,1740708641708,-500.0,0.00055067,120]
[354804746,1740708641718,-500.0,0.00055067,120]
[354804747,1740708641727,-500.0,0.00055067,120]
[354804748,1740708641736,-500.0,0.00055067,120]
[354804749,1740708641746,-500.0,0.00055067,120]
[354804750,1740708641755,-500.0,0.00055067,120]
[354804751,1740708641763,-500.0,0.00055067,120]
[354804752,1740708641772,-303.647567,0.00055067,120]
[354804753,1740708641781,-500.0,0.00055067,120]
[354804754,1740708641791,-501.65997338,0.00055067,120]
[354804755,1740708641799,-500.0,0.00055067,120]
[354804756,1740708641809,-500.0,0.00055067,120]
[354804757,1740708641818,-217.25,0.00055067,120]
[354804758,1740708641827,-507.75692013,0.00055067,120]
[354804759,1740708641836,-501.27741405,0.00055067,120]
[354804760,1740708641845,-500.0,0.00055067,120]
[354804761,1740708641854,-496.32634174,0.00055067,120]
[354804762,1740708641863,-457.55662283,0.00055067,120]
[354804763,1740708641874,-503.76286106,0.00055067,120]
[354804764,1740708641885,-500.0,0.00055067,120]
[354804765,1740708641895,-500.0,0.00055067,120]
[354804766,1740708641904,-500.0,0.00055067,120]
[354804767,1740708641914,-507.29075716,0.00055067,120]
[354804768,1740708641923,-413.53947697,0.00055067,120]
[354804769,1740708641934,-502.7215122,0.00055067,120]
[354804770,1740708641944,-500.0,0.00055067,120]
[354804771,1740708641954,-500.0,0.00055067,120]
[354804772,1740708641968,-500.0,0.00055067,120]
[354804773,1740708641980,-500.0,0.00055067,120]
[354804774,1740708641990,-500.0,0.00055067,120]
[354804775,1740708641999,-500.0,0.00055067,120]
[354804776,1740708642008,-500.0,0.00055067,120]
[354804777,1740708642017,-500.0,0.00055067,120]
[354804778,1740708642028,-448.86378138,0.00055067,120]
[354804779,1740708642039,-500.0,0.00055067,120]
[354804780,1740708642050,-500.0,0.00055067,120]
[354804781,1740708642060,-500.0,0.00055067,120]
[354804782,1740708642069,-630.94756385,0.00055067,120]
[354804783,1740708642078,-500.0,0.00055067,120]
[354804784,1740708642087,-500.0,0.00055067,120]
[354804785,1740708642096,-506.64806331,0.00055067,120]
[354804786,1740708642105,-500.0,0.00055067,120]
[354804787,1740708642114,-500.0,0.00055067,120]
[354804788,1740708642123,-500.0,0.00055067,120]
[354804789,1740708642132,-500.0,0.00055067,120]
[354804790,1740708642141,-500.0,0.00055067,120]
[354804791,1740708642150,-500.0,0.00055067,120]
[354804792,1740708642159,-500.0,0.00055067,120]
[354804793,1740708642169,-500.0,0.00055067,120]
[354804794,1740708642178,-500.0,0.00055067,120]
[354804795,1740708642187,-237.7286054,0.00055067,120]
[354804796,1740708642196,-500.0,0.00055067,120]
[354804797,1740708642205,-500.0,0.00055067,120]
[354804798,1740708642215,-504.02723365,0.00055067,120]
[354804799,1740708642224,-500.0,0.00055067,120]
[354804800,1740708642233,-608.67944221,0.00055067,120]
[354804801,1740708642242,-500.0,0.00055067,120]
[354804802,1740708642251,-488.0,0.00055067,120]
[354804803,1740708642261,-500.0,0.00055067,120]
[354804804,1740708642270,-500.0,0.00055067,120]
[354804805,1740708642279,-500.0,0.00055067,120]
[354804806,1740708642288,-500.0,0.00055067,120]
[354804807,1740708642297,-500.0,0.00055067,120]
[354804808,1740708642306,-500.0,0.00055067,120]
[354804809,1740708642315,-500.0,0.00055067,120]
[354804810,1740708642324,-566.28,0.00055067,120]
[354804811,1740708642333,-434.10559269,0.00055067,120]
[354804812,1740708642343,-580.80041384,0.00055067,120]
[354804813,1740708642352,-500.0,0.00055067,120]
[354804814,1740708642361,-500.0,0.00055067,30]
[354804815,1740708642371,-175.97,0.00055067,120]
[354804816,1740708642380,-252.01,0.00055067,120]
[354804817,1740708642390,-500.0,0.00055067,120]
[354804818,1740708642398,-500.0,0.00055067,120]
[354804819,1740708642408,-500.0,0.00055067,120]
[354804820,1740708642418,-500.0,0.00055067,120]
[354804821,1740708642427,-500.0,0.00055067,120]
[354804822,1740708642436,-500.0,0.00055067,120]
[354804823,1740708642446,-500.0,0.00055067,120]
[354804824,1740708642456,-500.0,0.00055067,120]
[354804825,1740708642465,-500.0,0.00055067,120]
[354804826,1740708642475,-500.0,0.00055067,120]
[354804827,1740708642486,-500.0,0.00055067,120]
[354804828,1740708642496,-500.0,0.00055067,120]
[354804829,1740708642505,-500.0,0.00055067,120]
[354804831,1740708642515,-526.98,0.00055067,120]
[354804833,1740708642524,-500.0,0.00055067,120]
[354804835,1740708642534,-150.32,0.00055067,120]
[354804838,1740708642544,-566.77398898,0.00055067,120]
[354804840,1740708642553,-500.0,0.00055067,120]
[354804843,1740708642563,-1040.93,0.00055067,120]
[354804846,1740708642572,-548.49,0.00055067,120]
[354804849,1740708642581,-289.77,0.00055067,120]
[354804852,1740708642590,-500.0,0.00055067,120]
[354804855,1740708642599,-500.0,0.00055067,120]
[354804858,1740708642608,-500.0,0.00055067,120]
[354804861,1740708642618,-500.0,0.00055067,120]
[354804864,1740708642627,-500.0,0.00055067,120]
[354804866,1740708642636,-500.0,0.00055067,120]
[354804868,1740708642645,-598.54,0.00055067,120]
[354804870,1740708642654,-500.0,0.00055067,120]
[354804872,1740708642663,-500.0,0.00055067,120]
[354804874,1740708642675,-500.0,0.00055067,120]
[354804876,1740708642685,-500.0,0.00055067,120]
[354804878,1740708642694,-500.0,0.00055067,120]
[354804880,1740708642703,-500.0,0.00055067,120]
[354804881,1740708642712,-500.0,0.00055067,120]
[354804882,1740708642722,-500.0,0.00055067,120]
[354804883,1740708642731,-500.0,0.00055067,120]
[354804884,1740708642741,-500.0,0.00055067,120]
[354804885,1740708642750,-500.0,0.00055067,120]
[354804886,1740708642759,-533.50497309,0.00055067,120]
[354804887,1740708642768,-444.42,0.00055067,120]
[354804888,1740708642777,-500.0,0.00055067,120]
[354804889,1740708642786,-500.0,0.00055067,120]
[354804890,1740708642795,-500.0,0.00055067,120]
[354804891,1740708642804,-500.0,0.00055067,120]
[354804892,1740708642813,-500.0,0.00055067,120]
[354804893,1740708642823,-311.0,0.00055067,120]
[354804894,1740708642832,-500.0,0.00055067,120]
[354804895,1740708642840,-152.03208683,0.00055067,120]
[354804896,1740708642979,-500.0,0.00055067,120]
[354804898,1740708642990,-500.86,0.00055067,120]
[354804900,1740708643000,-500.0,0.00055067,120]
[354804901,1740708643009,-500.0,0.00055067,120]
[354804902,1740708643020,-500.0,0.00055067,120]
[354804903,1740708643029,-500.0,0.00055067,120]
[354804904,1740708643038,-500.0,0.00055067,120]
[354804905,1740708643047,-500.0,0.00055067,120]
[354804906,1740708643057,-500.0,0.00055067,120]
[354804907,1740708643066,-585.34202329,0.00055067,120]
[354804908,1740708643075,-500.0,0.00055067,120]
[354804909,1740708643083,-624.53,0.00055067,120]
[354804910,1740708643092,-500.0,0.00055067,120]
[354804911,1740708643101,-500.0,0.00055067,120]
[354804912,1740708643110,-500.0,0.00055067,120]
[354804913,1740708643119,-500.0,0.00055067,120]
[354804914,1740708643128,-500.0,0.00055067,120]
[354804916,1740708643137,-500.0,0.00055067,120]
[354804917,1740708643146,-500.0,0.00055067,120]
[354804918,1740708643155,-500.0,0.00055067,120]
[354804919,1740708643164,-500.0,0.00055067,120]
[354804920,1740708643173,-6000.0,0.00055067,120]
[354804921,1740708643182,-558.84355027,0.00055067,120]
[354804922,1740708643191,-500.0,0.00055067,120]
[354804923,1740708643200,-500.0,0.00055067,7]
[354804924,1740708643209,-500.0,0.00055067,120]
[354804925,1740708643219,-329.58,0.00055067,120]
[354804926,1740708643228,-500.0,0.00055067,120]
[354804927,1740708643238,-500.0,0.00055067,120]
[354804928,1740708643247,-500.0,0.00055067,120]
[354804929,1740708643256,-500.0,0.00055067,120]
[354804930,1740708643266,-503.0803064,0.00055067,120]
[354804931,1740708643275,-500.0,0.00055067,120]
[354804932,1740708643284,-500.0,0.00055067,120]
[354804933,1740708643293,-509.00954834,0.00055067,120]
[354804934,1740708643302,-500.0,0.00055068,120]
[354804935,1740708643311,-500.0,0.00055068,120]
[354804936,1740708643320,-500.0,0.00055068,120]
[354804937,1740708643330,-500.0,0.00055068,120]
[354804938,1740708643339,-500.0,0.00055068,120]
[354804939,1740708643348,-500.0,0.00055068,120]
[354804940,1740708643358,-604.26,0.00055068,2]
[354804941,1740708643367,-500.0,0.00055068,120]
[354804942,1740708643376,-500.0,0.00055068,120]
[354804943,1740708643386,-500.0,0.00055068,120]
[354804944,1740708643395,-500.0,0.00055068,120]
[354804945,1740708643405,-500.0,0.00055068,120]
[354804946,1740708643414,-500.0,0.00055068,120]
[354804947,1740708643423,-500.0,0.00055068,120]
[354804948,1740708643432,-457.52,0.00055068,120]
[354804949,1740708643442,-500.0,0.00055068,120]
[354804950,1740708643451,-500.0,0.00055068,120]
[354804951,1740708643460,-617.08,0.00055068,120]
[354804952,1740708643469,-500.0,0.00055068,120]
[354804953,1740708643479,-500.0,0.00055068,120]
[354804954,1740708643490,-551.12863177,0.00055068,120]
[354804955,1740708643500,-500.0,0.00055068,120]
[354804956,1740708643509,-500.0,0.00055068,120]
[354804957,1740708643518,-500.0,0.00055068,120]
[354804958,1740708643527,-500.0,0.00055068,120]
[354804959,1740708643537,-1364.766012,0.00055068,120]
[354804960,1740708643546,-500.0,0.00055068,120]
[354804961,1740708643556,-379.297797,0.00055068,120]
[354804962,1740708643566,-500.0,0.00055068,120]
[354804963,1740708643575,-210.7409223,0.00055068,120]
[354804964,1740708643585,-500.0,0.00055068,120]
[354804965,1740708643594,-500.0,0.00055068,120]
[354804966,1740708643603,-500.0,0.00055068,120]
[354804967,1740708643613,-500.0,0.00055068,120]
[354804968,1740708643622,-500.0,0.00055068,120]
[354804969,1740708643632,-500.0,0.00055068,120]
[354804970,1740708643641,-596.62,0.00055068,120]
[354804971,1740708643651,-500.0,0.00055068,120]
[354804972,1740708643661,-361.35,0.00055068,120]
[354804973,1740708643670,-1446.15,0.00055068,120]
[354804974,1740708643679,-500.0,0.00055068,120]
[354804975,1740708643688,-500.0,0.00055068,120]
[354804976,1740708643698,-551.82610689,0.00055068,120]
[354804977,1740708643707,-436.04564828,0.00055068,120]
[354804978,1740708643717,-500.0,0.00055068,120]
[354804979,1740708643726,-471.88943774,0.00055068,120]
[354804980,1740708643735,-500.0,0.00055068,120]
[354804981,1740708643745,-663.2,0.00055068,120]
[354804982,1740708643754,-500.0,0.00055068,120]
[354804983,1740708643763,-295.63138431,0.00055068,120]
[354804984,1740708643772,-195.22595651,0.00055068,120]
[354804985,1740708643780,-528.09591487,0.00055068,120]
[354804986,1740708643789,-449.23055963,0.00055068,120]
[354804987,1740708643797,-314.92343806,0.00055068,120]
[354804988,1740708643806,-178.67499447,0.00055068,120]
[354804989,1740708643815,-510.05173791,0.00055068,120]
[354804990,1740708643824,-500.0,0.00055068,120]
[354804991,1740708643833,-214.79392278,0.00055068,120]
[354804992,1740708643842,-500.0,0.00055068,120]
[354804993,1740708643850,-500.0,0.00055068,120]
[354804994,1740708643859,-500.0,0.00055068,120]
[354804995,1740708643868,-619.18322682,0.00055068,120]
[354804996,1740708643878,-500.0,0.00055068,120]
[354804997,1740708643891,-340.21789625,0.00055068,120]
[354804998,1740708643900,-500.0,0.00055068,120]
[354804999,1740708643910,-562.88,0.00055068,120]
[354805000,1740708643920,-510.54,0.00055068,120]
[354805001,1740708643929,-466.9,0.00055068,120]
[354805002,1740708643937,-500.0,0.00055068,120]
[354805003,1740708643946,-500.0,0.00055068,120]
[354805004,1740708643955,-500.0,0.00055068,120]
[354805005,1740708643966,-500.0,0.00055068,120]
[354805006,1740708643976,-500.0,0.00055068,120]
[354805007,1740708643985,-500.0,0.00055068,120]
[354805008,1740708643996,-500.0,0.00055068,120]
[354805009,1740708644004,-500.0,0.00055068,120]
[354805010,1740708644013,-500.0,0.00055068,120]
[354805011,1740708644022,-500.0,0.00055068,120]
[354805012,1740708644031,-500.0,0.00055068,120]
[354805013,1740708644040,-500.0,0.00055068,120]
[354805014,1740708644050,-619.8207163,0.00055068,120]
[354805015,1740708644059,-579.62,0.00055068,120]
[354805016,1740708644068,-500.0,0.00055068,120]
[354805017,1740708644077,-500.0,0.00055068,120]
[354805018,1740708644086,-1000.0,0.00055068,120]
[354805019,1740708644095,-500.0,0.00055068,120]
[354805020,1740708644104,-500.0,0.00055068,120]
[354805021,1740708644113,-500.0,0.00055068,120]
[354805022,1740708644123,-716.47,0.00055068,120]
[354805023,1740708644132,-500.0,0.00055068,10]
[354805024,1740708644142,-500.0,0.00055068,120]
[354805025,1740708644150,-500.0,0.00055068,120]
[354805026,1740708644160,-532.93114914,0.00055068,120]
[354805027,1740708644170,-404.52862895,0.00055068,120]
[354805028,1740708644180,-500.0,0.00055068,120]
[354805029,1740708644190,-151.07306649,0.00055068,120]
[354805030,1740708644199,-500.0,0.00055068,120]
[354805031,1740708644209,-500.0,0.00055068,120]
[354805032,1740708644218,-386.00608667,0.00055068,120]
[354805033,1740708644227,-500.0,0.00055068,120]
[354805034,1740708644238,-500.0,0.00055068,2]
[354805035,1740708644247,-500.0,0.00055068,100]
[354805036,1740708644257,-1980.51,0.00055068,120]
[354805037,1740708644266,-500.0,0.00055068,120]
[354805038,1740708644275,-500.0,0.00055068,120]
[354805039,1740708644285,-500.0,0.00055068,120]
[354805040,1740708644295,-500.0,0.00055068,120]
[354805041,1740708644304,-500.0,0.00055068,120]
[354805042,1740708644313,-500.0,0.00055068,120]
[354805043,1740708644322,-500.0,0.00055068,120]
[354805044,1740708644331,-500.0,0.00055068,120]
[354805045,1740708644341,-500.0,0.00055068,120]
[354805046,1740708644350,-500.0,0.00055068,120]
[354805047,1740708644359,-500.0,0.00055068,120]
[354805048,1740708644369,-351.87496,0.00055068,120]
[354805049,1740708644378,-500.0,0.00055068,120]
[354805050,1740708644387,-1654.30962248,0.00055111,120]
[354805051,1740708644396,-317.73612021,0.00055142,2]
[354805052,1740708644405,-500.0,0.00055165,2]
[354805053,1740708644414,-168.6316374,0.00055242,28]
[354805054,1740708644423,-514.85695192,0.00055341,120]
[354805055,1740708644433,-500.0,0.00055341,120]
[354805056,1740708644442,-500.0,0.00055341,120]
[354805057,1740708644451,-500.0,0.00055341,120]
[354805058,1740708644460,-500.0,0.00055341,120]
[354805059,1740708644470,-500.0,0.00055341,120]
[354805060,1740708644479,-500.0,0.00055341,120]
[354805061,1740708644487,-500.0,0.00055341,120]
[354805062,1740708644497,-500.0,0.00055341,120]
[354805063,1740708644506,-500.0,0.00055341,120]
[354805064,1740708644515,-176.58,0.00055341,30]
[354805065,1740708644525,-197.76,0.00055341,120]
[354805066,1740708644535,-552.63,0.00055341,120]
[354805067,1740708644544,-562.11,0.00055341,120]
[354805068,1740708644554,-600.02,0.00055341,120]
[354805069,1740708644563,-246.5,0.00055341,120]
[354805070,1740708644573,-222.89,0.00055341,120]
[354805071,1740708644582,-500.0,0.00055341,120]
[354805072,1740708644591,-500.0,0.00055341,120]
[354805073,1740708644601,-153.86,0.00055341,120]
[354805074,1740708644610,-499.53,0.00055341,120]
[354805075,1740708644619,-500.0,0.00055341,120]
[354805076,1740708644628,-521.62596096,0.00055341,120]
[354805077,1740708644638,-500.0,0.00055341,120]
[354805078,1740708644647,-500.0,0.00055341,120]
[354805079,1740708644656,-500.0,0.00055341,120]
[354805080,1740708644666,-500.0,0.00055341,120]
[354805081,1740708644675,-530.28662203,0.00055341,120]
[354805082,1740708644684,-500.0,0.00055341,120]
[354805083,1740708644693,-500.0,0.00055341,120]
[354805084,1740708644702,-505.43853423,0.00055341,120]
[354805085,1740708644711,-500.0,0.00055341,120]
[354805086,1740708644720,-500.0,0.00055341,120]
[354805087,1740708644730,-500.0,0.00055341,120]
[354805088,1740708644741,-268.87473117,0.00055341,120]
[354805089,1740708644749,-500.0,0.00055341,120]
[354805090,1740708644759,-500.0,0.00055341,120]
[354805091,1740708644768,-500.0,0.00055341,120]
[354805092,1740708644778,-500.0,0.00055341,120]
[354805093,1740708644788,-486.38,0.00055341,120]
[354805094,1740708644797,-500.0,0.00055341,120]
[354805095,1740708644806,-500.0,0.00055341,120]
[354805096,1740708644815,-417.7125442,0.00055341,120]
[354805097,1740708644824,-500.0,0.00055341,120]
[354805098,1740708644833,-500.0,0.00055341,120]
[354805099,1740708644844,-500.0,0.00055341,120]
[354805100,1740708644853,-500.0,0.00055341,120]
[354805101,1740708644862,-386.8482,0.00055341,120]
[354805102,1740708644872,-566.28,0.00055341,120]
[354805103,1740708644882,-500.0,0.00055341,120]
[354805104,1740708644893,-500.0,0.00055341,30]
[354805105,1740708644902,-500.0,0.00055341,120]
[354805106,1740708644912,-500.0,0.00055341,120]
[354805107,1740708644923,-500.0,0.00055341,120]
[354805108,1740708644932,-500.0,0.00055341,120]
[354805109,1740708644941,-500.0,0.00055341,120]
[354805110,1740708644950,-500.0,0.00055341,120]
[354805111,1740708644960,-500.0,0.00055341,120]
[354805112,1740708644969,-500.0,0.00055341,120]
[354805113,1740708644979,-500.0,0.00055341,120]
[354805114,1740708644992,-1040.93,0.00055341,120]
[354805115,1740708645002,-438.83,0.00055341,120]
[354805116,1740708645011,-500.0,0.00055341,120]
[354805117,1740708645021,-500.0,0.00055341,120]
[354805118,1740708645030,-500.0,0.00055341,120]
[354805119,1740708645039,-500.0,0.00055341,120]
[354805120,1740708645048,-622.85,0.00055341,120]
[354805121,1740708645058,-188.53,0.00055341,120]
[354805122,1740708645067,-500.0,0.00055341,120]
[354805123,1740708645077,-500.0,0.00055341,120]
[354805124,1740708645087,-500.0,0.00055341,120]
[354805125,1740708645096,-500.0,0.00055341,120]
[354805126,1740708645105,-500.0,0.00055341,120]
[354805127,1740708645115,-500.0,0.00055341,120]
[354805128,1740708645125,-500.0,0.00055341,120]
[354805129,1740708645135,-500.0,0.00055341,120]
[354805130,1740708645144,-500.0,0.00055341,120]
[354805131,1740708645153,-500.0,0.00055341,120]
[354805132,1740708645163,-516.89811844,0.00055341,120]
[354805133,1740708645172,-500.0,0.00055341,120]
[354805134,1740708645181,-500.0,0.00055341,120]
[354805135,1740708645190,-401.00133859,0.00055341,120]
[354805136,1740708645200,-244.45477992,0.00055341,120]
[354805137,1740708645210,-500.0,0.00055341,120]
[354805138,1740708645219,-500.0,0.00055341,120]
[354805139,1740708645228,-500.0,0.00055341,120]
[354805140,1740708645237,-500.0,0.00055341,120]
[354805141,1740708645249,-206.08965645,0.00055341,120]
[354805142,1740708645259,-273.47,0.00055341,120]
[354805143,1740708645268,-500.0,0.00055341,120]
[354805144,1740708645277,-560.4,0.00055341,120]
[354805145,1740708645287,-500.0,0.00055341,120]
[354805146,1740708645296,-500.0,0.00055341,120]
[354805147,1740708645305,-500.0,0.00055341,7]
[354805148,1740708645315,-454.00341505,0.00055341,120]
[354805149,1740708645325,-542.08,0.00055341,120]
[354805150,1740708645334,-550.9,0.00055341,120]
[354805151,1740708645343,-500.0,0.00055341,120]
[354805152,1740708645353,-500.0,0.00055341,120]
[354805153,1740708645362,-500.0,0.00055342,120]
[354805154,1740708645372,-500.0,0.00055342,120]
[354805155,1740708645381,-500.0,0.00055342,120]
[354805156,1740708645391,-500.0,0.00055342,120]
[354805158,1740708645401,-199.38,0.00055342,120]
[354805159,1740708645411,-342.06,0.00055342,120]
[354805160,1740708645420,-434.51,0.00055342,120]
[354805161,1740708645429,-500.0,0.00055342,120]
[354805162,1740708645439,-500.0,0.00055342,120]
[354805163,1740708645448,-184.04574755,0.00055342,120]
[354805164,1740708645457,-500.0,0.00055342,120]
[354805165,1740708645466,-500.0,0.00055342,120]
[354805166,1740708645475,-500.0,0.00055342,120]
[354805167,1740708645485,-218.57,0.00055342,120]
[354805168,1740708645498,-632.59520207,0.00055342,120]
[354805169,1740708645507,-500.0,0.00055342,120]
[354805170,1740708645517,-589.37055235,0.00055342,120]
[354805171,1740708645526,-238.99,0.00055342,120]
[354805172,1740708645536,-186.22,0.00055342,120]
[354805173,1740708645545,-1364.766012,0.00055342,120]
[354805174,1740708645554,-379.63267113,0.00055342,120]
[354805175,1740708645563,-379.297797,0.00055342,120]
[354805176,1740708645572,-500.0,0.00055342,120]
[354805177,1740708645581,-500.0,0.00055342,120]
[354805178,1740708645591,-500.0,0.00055342,120]
[354805179,1740708645600,-336.16001736,0.00055342,120]
[354805180,1740708645609,-500.0,0.00055342,120]
[354805181,1740708645619,-408.5268461,0.00055342,120]
[354805182,1740708645628,-500.0,0.00055342,120]
[354805183,1740708645638,-1446.15,0.00055342,120]
[354805184,1740708645647,-500.0,0.00055342,120]
[354805185,1740708645656,-500.0,0.00055342,120]
[354805186,1740708645666,-500.0,0.00055342,120]
[354805187,1740708645674,-500.0,0.00055342,120]
[354805188,1740708645683,-663.2,0.00055342,120]
[354805189,1740708645693,-274.05792143,0.00055342,120]
[354805190,1740708645701,-500.0,0.00055342,120]
[354805191,1740708645710,-502.07,0.00055342,120]
[354805192,1740708645719,-500.0,0.00055342,120]
[354805193,1740708645728,-500.0,0.00055342,120]